bitfinex/quotes_BTCUSD_20240712
["timestamp","ask_amount","ask_price","bid_price","bid_amount"]
[1720759570640,0.00827,57140.0,57139.0,1.469256]
[1720759570869,0.00827,57140.0,57139.0,1.919572]
[1720759571094,0.00827,57140.0,57139.0,1.719572]
[1720759572262,0.00827,57140.0,57139.0,1.733572]
[1720759572534,0.00827,57140.0,57139.0,1.499556]
[1720759572760,0.00827,57140.0,57139.0,1.399556]
[1720759572998,0.00827,57140.0,57139.0,0.134]
[1720759573243,0.00827,57140.0,57139.0,0.256508]
[1720759573482,0.00827,57140.0,57139.0,0.501524]
[1720759573710,0.00827,57140.0,57139.0,0.490524]
[1720759573933,0.00827,57140.0,57139.0,0.504524]
[1720759574155,0.00827,57140.0,57139.0,0.028]
[1720759574375,0.00827,57140.0,57139.0,0.245508]
[1720759574609,0.00827,57140.0,57139.0,0.123]
[1720759574826,0.00827,57140.0,57139.0,0.259508]
[1720759575098,0.00827,57140.0,57139.0,0.137]
[1720759575314,0.00827,57140.0,57139.0,0.028]
[1720759575531,0.00827,57140.0,57139.0,0.395524]
[1720759575743,0.00827,57140.0,57139.0,0.259508]
[1720759576453,0.00827,57140.0,57139.0,0.74954]
[1720759577336,0.00827,57140.0,57139.0,1.054556]
[1720759577855,0.00827,57145.0,57139.0,1.054556]
[1720759577856,0.00827,57145.0,57144.0,0.536492]
[1720759578070,0.00827,57145.0,57144.0,0.924387]
[1720759578314,0.00827,57145.0,57144.0,1.169382]
[1720759578551,0.00827,57145.0,57144.0,1.469382]
[1720759578792,0.00827,57145.0,57144.0,1.169382]
[1720759579081,0.00827,57145.0,57144.0,1.109382]
[1720759579313,0.00827,57145.0,57144.0,0.476492]
[1720759579552,0.00827,57145.0,57144.0,0.735487]
[1720759579790,0.00827,57145.0,57144.0,0.795487]
[1720759580033,0.00827,57145.0,57144.0,1.040482]
[1720759580255,0.00827,57145.0,57144.0,0.735487]
[1720759580470,0.0115611,57153.0,57152.0,0.42144]
[1720759580687,0.0115611,57153.0,57152.0,0.47644]
[1720759581554,0.0115611,57153.0,57152.0,1.10806]
[1720759581768,0.0115611,57153.0,57152.0,1.61302]
[1720759581982,0.001,57169.0,57168.0,1.167822]
[1720759582201,0.001,57169.0,57168.0,1.673122]
[1720759582431,0.001,57169.0,57168.0,1.473122]
[1720759583339,0.001,57182.0,57168.0,1.473122]
[1720759583340,0.00082489,57182.0,57181.0,1.104426]
[1720759583561,0.00082489,57182.0,57181.0,1.914562]
[1720759584002,0.00082489,57182.0,57181.0,1.469726]
[1720759584266,0.00082489,57182.0,57181.0,0.1385]
[1720759584511,0.00082489,57182.0,57181.0,0.231418]
[1720759584742,0.00082489,57182.0,57181.0,0.476254]
[1720759585229,0.00082489,57182.0,57181.0,0.490254]
[1720759585521,0.00082489,57182.0,57181.0,0.014]
[1720759585732,0.61290489,57182.0,57181.0,0.014]
[1720759585972,0.61290489,57182.0,57181.0,0.025]
[1720759586443,0.12424089,57182.0,57181.0,0.038]
[1720759586689,0.12424089,57182.0,57181.0,0.73209]
[1720759586690,0.00082489,57182.0,57181.0,0.73209]
[1720759586953,0.00082489,57182.0,57181.0,1.102226]
[1720759587436,0.00082489,57182.0,57181.0,1.091226]
[1720759587667,0.00082489,57182.0,57181.0,1.031226]
[1720759587901,0.00082489,57182.0,57181.0,1.047226]
[1720759588378,0.00082489,57182.0,57181.0,0.79439]
[1720759588613,0.00082489,57182.0,57181.0,0.558254]
[1720759588866,0.00082489,57182.0,57181.0,1.039926]
[1720759589128,0.00082489,57182.0,57181.0,0.73509]
[1720759589623,0.00082489,57182.0,57181.0,0.74909]
[1720759589625,0.00082489,57182.0,57181.0,0.73509]
[1720759589881,0.00082489,57182.0,57181.0,0.504254]
[1720759590147,0.00082489,57182.0,57181.0,0.74909]
[1720759590383,0.00082489,57182.0,57181.0,0.504254]
[1720759590616,0.00082489,57182.0,57181.0,0.490254]
[1720759590851,0.00082489,57182.0,57181.0,0.504254]
[1720759591091,0.00082489,57182.0,57181.0,0.490254]
[1720759591325,0.00082489,57182.0,57181.0,0.504254]
[1720759591556,0.00082489,57182.0,57181.0,0.109]
[1720759591817,0.00082489,57182.0,57181.0,0.490254]
[1720759592078,0.00082489,57182.0,57181.0,0.259418]
[1720759592348,0.00082489,57182.0,57179.0,0.122422]
[1720759592613,0.00082489,57182.0,57169.0,0.06306353]
[1720759592614,0.00082489,57182.0,57180.0,0.00306353]
[1720759592615,0.122418,57181.0,57180.0,0.00306353]
[1720759592876,0.122418,57181.0,57172.0,0.109]
[1720759592877,0.006,57181.0,57172.0,0.109]
[1720759593197,0.006,57181.0,57168.0,0.244889]
[1720759593198,0.006,57181.0,57170.0,0.109]
[1720759593401,0.006,57181.0,57166.0,0.065]
[1720759593402,0.00777088,57180.0,57176.0,0.109]
[1720759593671,0.122422,57180.0,57178.0,0.109]
[1720759593905,0.00082489,57182.0,57177.0,0.109]
[1720759594157,0.00082489,57182.0,57178.0,0.122423]
[1720759594392,0.00082489,57182.0,57181.0,0.123]
[1720759594637,0.00082489,57182.0,57181.0,0.490254]
[1720759594869,0.00082489,57182.0,57179.0,0.014]
[1720759595107,0.00082489,57182.0,57175.0,0.12243]
[1720759595108,0.122422,57180.0,57175.0,0.12243]
[1720759595368,0.00082489,57182.0,57177.0,0.007]
[1720759595605,0.367273,57178.0,57177.0,0.007]
[1720759595838,0.122424,57178.0,57174.0,0.109]
[1720759596091,0.122423,57179.0,57175.0,0.109]
[1720759596348,0.12242,57180.0,57179.0,0.014]
[1720759596579,0.00082489,57182.0,57181.0,0.109]
[1720759596822,0.122418,57181.0,57179.0,0.014]
[1720759597338,0.122418,57181.0,57179.0,0.028]
[1720759597800,0.12242,57180.0,57179.0,0.014]
[1720759598012,0.36726,57180.0,57179.0,0.014]
[1720759598251,0.6121,57180.0,57179.0,0.014]
[1720759598676,0.122439,57171.0,57170.0,0.109]
[1720759598902,0.244896,57167.0,57166.0,0.00306353]
[1720759599122,0.1,57179.0,57157.0,0.1731]
[1720759599123,0.001,57168.0,57160.0,0.122463]
[1720759599343,0.001,57168.0,57159.0,0.00306353]
[1720759599344,0.245893,57168.0,57159.0,0.00306353]
[1720759599597,0.122457,57163.0,57158.0,0.11206353]
[1720759599816,0.122454,57164.0,57160.0,0.109]
[1720759600037,0.122454,57164.0,57158.0,0.12552953]
[1720759600038,0.122457,57163.0,57158.0,0.12552953]
[1720759600257,0.122457,57163.0,57158.0,0.097466]
[1720759600965,0.122472,57156.0,57151.0,0.122481]
[1720759601189,0.122472,57156.0,57152.0,0.122479]
[1720759601190,0.122471,57156.0,57152.0,0.122479]
[1720759601413,0.245893,57168.0,57147.0,0.1472]
[1720759601414,0.122485,57150.0,57147.0,0.1472]
[1720759601632,0.122485,57150.0,57146.0,0.109]
[1720759601862,0.122482,57151.0,57146.0,0.231492]
[1720759602088,0.12248,57153.0,57147.0,0.12249]
[1720759602344,0.12248,57153.0,57152.0,0.012]
[1720759602564,0.122463,57160.0,57156.0,0.109]
[1720759602805,0.244922,57161.0,57158.0,0.119]
[1720759602806,0.122465,57159.0,57158.0,0.119]
[1720759603038,0.24493,57159.0,57152.0,0.121]
[1720759603266,0.122478,57153.0,57152.0,0.012]
[1720759603523,0.367434,57153.0,57152.0,0.012]
[1720759603754,0.244935,57158.0,57149.0,0.109]
[1720759603755,0.122483,57151.0,57149.0,0.109]
[1720759603985,0.122483,57151.0,57147.0,0.014]
[1720759603986,0.122476,57154.0,57153.0,0.109]
[1720759604236,0.12248,57152.0,57150.0,0.109]
[1720759604484,0.122484,57151.0,57149.0,0.00306353]
[1720759604701,0.367453,57150.0,57149.0,0.00306353]
[1720759604935,0.244957,57153.0,57150.0,0.055]
[1720759605173,0.122481,57152.0,57149.0,0.109]
[1720759605402,0.122481,57152.0,57144.0,0.109]
[1720759605403,0.244964,57152.0,57144.0,0.109]
[1720759605622,0.006,57154.0,57144.0,0.109]
[1720759605927,0.367479,57146.0,57145.0,0.00306353]
[1720759606157,0.863451,57146.0,57145.0,0.00306353]
[1720759606377,0.957451,57146.0,57145.0,0.00306353]
[1720759606584,0.957451,57146.0,57139.0,0.109]
[1720759606585,0.1,57146.0,57139.0,0.109]
[1720759606791,0.122506,57140.0,57139.0,0.055]
[1720759607000,0.122506,57140.0,57134.0,0.308034]
[1720759607001,0.122506,57140.0,57137.0,0.109]
[1720759607223,0.245,57143.0,57133.0,0.00306353]
[1720759607224,0.245007,57141.0,57133.0,0.00306353]
[1720759607438,0.245007,57141.0,57132.0,0.109]
[1720759607439,0.122517,57135.0,57132.0,0.109]
[1720759607645,0.245013,57140.0,57133.0,0.109]
[1720759607850,0.1,57146.0,57136.0,0.109]
[1720759607851,0.367537,57137.0,57136.0,0.109]
[1720759608274,0.24503,57136.0,57131.0,0.109]
[1720759608483,0.367575,57131.0,57130.0,0.4771]
[1720759608706,0.006,57140.0,57129.0,0.109]
[1720759608707,0.24504,57134.0,57129.0,0.109]
[1720759608917,0.122521,57133.0,57132.0,0.109]
[1720759609131,0.122509,57139.0,57136.0,0.109]
[1720759609339,0.122506,57140.0,57139.0,0.109]
[1720759609558,0.222506,57140.0,57139.0,0.109]
[1720759609773,0.222506,57140.0,57130.0,0.245051]
[1720759609774,0.245016,57139.0,57133.0,0.109]
[1720759610001,0.122515,57136.0,57133.0,0.109]
[1720759610220,0.1,57140.0,57132.0,0.003]
[1720759610221,0.245026,57137.0,57132.0,0.003]
[1720759610432,0.245031,57136.0,57132.0,0.003]
[1720759610644,0.612605,57133.0,57132.0,0.003]
[1720759611535,0.245059,57130.0,57125.0,0.231538]
[1720759611760,0.122531,57128.0,57125.0,0.109]
[1720759612449,0.245042,57133.0,57127.0,0.109]
[1720759612679,0.122522,57133.0,57132.0,0.111]
[1720759612909,0.122522,57133.0,57132.0,0.002]
[1720759613125,0.122523,57132.0,57131.0,0.109]
[1720759614031,0.122527,57131.0,57129.0,0.109]
[1720759614460,0.122527,57130.0,57129.0,0.109]
[1720759614675,0.245027,57137.0,57131.0,0.114]
[1720759614888,0.122519,57134.0,57131.0,0.114]
[1720759615182,0.122519,57134.0,57131.0,0.109]
[1720759615392,0.122521,57133.0,57129.0,0.231528]
[1720759615610,0.122521,57133.0,57132.0,0.002]
[1720759615846,0.122521,57133.0,57129.0,0.115]
[1720759615847,0.122527,57130.0,57129.0,0.006]
[1720759616062,0.612637,57130.0,57129.0,0.006]
[1720759616297,0.857692,57130.0,57129.0,0.006]
[1720759616526,0.10901105,57141.0,57133.0,0.109]
[1720759616737,0.12252,57134.0,57131.0,0.109]
[1720759616964,0.245034,57135.0,57132.0,0.003]
[1720759617177,0.1,57133.0,57131.0,0.111]
[1720759617621,0.1,57133.0,57132.0,0.109]
[1720759617822,0.1,57133.0,57131.0,0.124523]
[1720759617823,0.1,57133.0,57131.0,0.233523]
[1720759618037,0.1,57133.0,57131.0,0.231523]
[1720759618248,0.122516,57135.0,57131.0,0.109]
[1720759618249,0.1,57134.0,57131.0,0.109]
[1720759618486,0.1,57134.0,57132.0,0.001]
[1720759619394,0.367563,57133.0,57132.0,0.001]
[1720759619619,0.712605,57133.0,57132.0,0.001]
[1720759619831,0.712605,57133.0,57132.0,0.003]
[1720759620048,0.712605,57133.0,57132.0,0.002]
[1720759620520,0.957647,57133.0,57132.0,0.002]
[1720759620747,0.367569,57132.0,57131.0,0.004]
[1720759620975,0.345042,57133.0,57130.0,0.109]
[1720759620976,0.122527,57131.0,57130.0,0.109]
[1720759621427,0.1,57133.0,57129.0,0.109]
[1720759621702,0.245035,57135.0,57129.0,0.109]
[1720759621703,0.245047,57132.0,57129.0,0.109]
[1720759621917,0.122526,57131.0,57127.0,0.109]
[1720759622133,0.122527,57130.0,57127.0,0.109]
[1720759622353,0.122527,57130.0,57126.0,0.231534]
[1720759622565,0.122527,57130.0,57127.0,0.109]
[1720759622804,0.122527,57130.0,57126.0,0.109]
[1720759622805,0.245055,57130.0,57126.0,0.109]
[1720759623036,0.122532,57128.0,57126.0,0.109]
[1720759623244,0.1,57134.0,57123.0,0.009075]
[1720759623245,0.122537,57126.0,57123.0,0.009075]
[1720759623462,0.122539,57125.0,57123.0,0.009075]
[1720759623681,0.12254,57124.0,57123.0,0.009075]
[1720759624356,0.36762,57124.0,57123.0,0.009075]
[1720759624564,0.36762,57124.0,57123.0,0.019075]
[1720759624988,0.245067,57128.0,57123.0,0.118075]
[1720759625201,0.2,57139.0,57129.0,0.109]
[1720759625202,0.122526,57131.0,57129.0,0.109]
[1720759625663,0.245044,57133.0,57132.0,0.109]
[1720759625876,0.245044,57133.0,57130.0,0.11206353]
[1720759625877,0.122525,57131.0,57130.0,0.11206353]
[1720759626095,0.222525,57131.0,57130.0,0.109]
[1720759626529,0.222525,57131.0,57129.0,0.114]
[1720759626762,0.472,57160.0,57150.0,0.231482]
[1720759626989,0.001,57161.0,57156.0,0.122471]
[1720759626990,0.51068611,57159.0,57156.0,0.122471]
[1720759627212,0.51068611,57159.0,57155.0,0.109]
[1720759627213,0.244917,57163.0,57157.0,0.109]
[1720759627214,0.00806016,57163.0,57157.0,0.109]
[1720759627433,0.244918,57162.0,57157.0,0.109]
[1720759627655,0.001,57166.0,57155.0,0.0641]
[1720759627656,0.244924,57161.0,57155.0,0.0641]
[1720759627878,0.122471,57157.0,57154.0,0.0832]
[1720759628138,0.244937,57158.0,57149.0,0.1895]
[1720759628139,0.244938,57158.0,57149.0,0.1895]
[1720759628368,0.006,57154.0,57145.0,0.0805]
[1720759628594,0.0250938,57158.0,57140.0,0.0805]
[1720759628595,0.122502,57142.0,57140.0,0.0805]
[1720759629070,0.244995,57144.0,57140.0,0.0805]
[1720759629071,0.367494,57144.0,57140.0,0.0805]
[1720759629318,0.122495,57145.0,57140.0,0.203005]
[1720759629547,0.244985,57147.0,57140.0,0.203005]
[1720759629548,0.122491,57147.0,57145.0,0.002]
[1720759629762,0.122481,57152.0,57147.0,0.23149]
[1720759629986,0.1,57151.0,57147.0,0.109]
[1720759630201,0.344967,57151.0,57146.0,0.109]
[1720759630693,0.122487,57149.0,57146.0,0.109]
[1720759631344,0.122487,57149.0,57145.0,0.231494]
[1720759631567,0.122487,57149.0,57145.0,0.122494]
[1720759631797,0.122487,57149.0,57145.0,0.231494]
[1720759632014,0.122487,57149.0,57146.0,0.109]
[1720759632261,0.222484,57151.0,57147.0,0.109]
[1720759632484,0.12249,57148.0,57145.0,0.009]
[1720759632718,0.1,57151.0,57146.0,0.109]
[1720759632925,0.122482,57152.0,57147.0,0.23149]
[1720759633170,0.1,57151.0,57147.0,0.23149]
[1720759633422,0.1,57151.0,57145.0,0.002]
[1720759633423,0.1,57151.0,57150.0,0.122484]
[1720759633884,0.1,57151.0,57149.0,0.231486]
[1720759634311,0.1,57153.0,57150.0,0.109]
[1720759634781,0.222478,57153.0,57150.0,0.109]
[1720759635210,0.222478,57153.0,57149.0,0.131486]
[1720759635430,0.344956,57153.0,57149.0,0.009]
[1720759635641,0.122484,57150.0,57149.0,0.009]
[1720759635879,0.1,57150.0,57149.0,0.009]
[1720759636136,0.473453,57150.0,57149.0,0.018]
[1720759636358,0.473453,57150.0,57149.0,0.009]
[1720759636801,0.473453,57150.0,57149.0,0.015]
[1720759637042,0.473453,57150.0,57149.0,0.009]
[1720759637266,0.473453,57150.0,57139.0,0.245016]
[1720759637267,0.122493,57146.0,57139.0,0.245016]
[1720759637482,0.245001,57143.0,57137.0,0.0663]
[1720759637695,0.12251,57138.0,57137.0,0.0663]
[1720759637912,0.12251,57138.0,57135.0,0.4771]
[1720759638147,0.12251,57138.0,57132.0,0.1402]
[1720759638148,0.24502,57138.0,57132.0,0.1402]
[1720759638374,0.006,57140.0,57129.0,0.109913]
[1720759638375,0.245036,57135.0,57129.0,0.109913]
[1720759638574,0.122517,57135.0,57133.0,0.109]
[1720759638801,0.122517,57135.0,57130.0,0.231527]
[1720759639019,0.122519,57134.0,57132.0,0.109]
[1720759640067,0.122519,57134.0,57133.0,0.005]
[1720759640271,0.122519,57134.0,57132.0,0.109]
[1720759640479,0.122519,57134.0,57132.0,0.115]
[1720759641455,0.122519,57134.0,57132.0,0.121]
[1720759641691,0.10149187,57134.0,57133.0,0.109]
[1720759642361,0.1,57137.0,57134.0,0.109]
[1720759642581,0.222512,57137.0,57136.0,0.109]
[1720759642833,0.222512,57137.0,57133.0,0.109]
[1720759642834,0.122517,57135.0,57133.0,0.109]
[1720759643082,0.006,57144.0,57137.0,0.109]
[1720759643083,0.00781039,57141.0,57137.0,0.109]
[1720759643332,0.00781039,57141.0,57133.0,0.245039]
[1720759643333,0.006,57153.0,57143.0,0.109]
[1720759643554,0.00870382,57148.0,57139.0,0.109]
[1720759643779,0.122497,57145.0,57139.0,0.231507]
[1720759643997,0.244988,57146.0,57139.0,0.476523]
[1720759643998,0.122497,57144.0,57139.0,0.476523]
[1720759644696,0.367475,57147.0,57143.0,0.109]
[1720759644924,0.122493,57146.0,57145.0,0.109]
[1720759645153,0.122493,57146.0,57142.0,0.122501]
[1720759645154,0.222493,57146.0,57144.0,0.109]
[1720759645412,0.1,57145.0,57144.0,0.109]
[1720759645633,0.09941908,57145.0,57144.0,0.109]
[1720759645850,0.09941908,57145.0,57140.0,0.122505]
[1720759645851,0.122498,57144.0,57140.0,0.122505]
[1720759646109,0.1225,57143.0,57139.0,0.123507]
[1720759646818,0.244996,57144.0,57139.0,0.001]
[1720759647044,0.122501,57143.0,57139.0,0.109]
[1720759647273,0.34441008,57145.0,57140.0,0.001]
[1720759647274,0.122503,57141.0,57140.0,0.001]
[1720759647500,0.122502,57142.0,57140.0,0.109]
[1720759647710,0.122503,57141.0,57140.0,0.109]
[1720759647927,0.122506,57140.0,57139.0,0.002]
[1720759648148,0.122506,57140.0,57139.0,0.003]
[1720759648598,0.122506,57140.0,57139.0,0.002]
[1720759648853,0.09941908,57145.0,57142.0,0.122501]
[1720759649081,0.09941908,57145.0,57143.0,0.109]
[1720759649329,0.22191408,57145.0,57143.0,0.109]
[1720759650254,0.122498,57144.0,57141.0,0.109]
[1720759650472,0.1225,57143.0,57139.0,0.128506]
[1720759650694,0.22191508,57145.0,57141.0,0.122503]
[1720759650934,0.09941908,57145.0,57143.0,0.109]
[1720759651390,0.22231975,57146.0,57143.0,0.109]
[1720759652513,0.00875893,57148.0,57147.0,0.721455]
[1720759652754,0.00083,57148.0,57147.0,1.00736935]
[1720759653196,0.00083,57148.0,57147.0,1.25235135]
[1720759653414,0.00083,57148.0,57147.0,1.107237]
[1720759653868,0.00083,57148.0,57147.0,0.862255]
[1720759654092,0.00083,57148.0,57147.0,0.1548]
[1720759654322,0.00083,57148.0,57147.0,0.372291]
[1720759654531,0.00083,57148.0,57147.0,0.86575464]
[1720759654762,0.00083,57148.0,57147.0,0.87975464]
[1720759654993,0.00083,57148.0,57147.0,0.631273]
[1720759655220,0.00083,57148.0,57147.0,0.617273]
[1720759655442,0.00083,57148.0,57147.0,0.873255]
[1720759655649,0.00027147,57148.0,57147.0,0.873255]
[1720759655859,0.00027147,57148.0,57147.0,0.887255]
[1720759656751,0.00027147,57148.0,57147.0,0.873255]
[1720759656976,0.00027147,57148.0,57147.0,0.508273]
[1720759657195,0.00027147,57148.0,57147.0,0.1538]
[1720759657406,0.00027147,57148.0,57147.0,0.385291]
[1720759657627,0.00027147,57148.0,57147.0,0.630273]
[1720759657853,0.00027147,57148.0,57147.0,0.399291]
[1720759658302,0.00027147,57148.0,57147.0,0.385291]
[1720759658772,0.00027147,57148.0,57147.0,0.398291]
[1720759659000,0.00027147,57148.0,57147.0,0.385291]
[1720759659218,0.00027147,57148.0,57147.0,0.398291]
[1720759659440,0.00027147,57148.0,57147.0,0.385291]
[1720759659898,0.00027147,57148.0,57147.0,0.398291]
[1720759660628,0.00027147,57148.0,57147.0,0.1668]
[1720759660851,0.12275947,57148.0,57147.0,0.1668]
[1720759661257,0.12275947,57148.0,57147.0,0.026]
[1720759661258,0.61271347,57148.0,57147.0,0.026]
[1720759661503,0.89137153,57148.0,57147.0,0.026]
[1720759662660,0.64639453,57148.0,57147.0,0.013]
[1720759663099,0.61271347,57148.0,57147.0,0.013]
[1720759663314,0.64621819,57148.0,57147.0,0.013]
[1720759663746,0.244987,57146.0,57143.0,0.109]
[1720759663956,0.122497,57144.0,57143.0,0.109]
[1720759664390,0.24524847,57148.0,57145.0,0.231495]
[1720759664391,0.00027147,57148.0,57145.0,0.231495]
[1720759664611,0.12276047,57148.0,57145.0,0.109]
[1720759665051,0.12276047,57148.0,57144.0,0.122497]
[1720759665539,0.34972839,57151.0,57143.0,0.005]
[1720759665540,0.244982,57147.0,57143.0,0.005]
[1720759665752,0.122497,57144.0,57143.0,0.005]
[1720759666419,0.122497,57144.0,57143.0,0.01]
[1720759666712,0.122497,57144.0,57143.0,0.005]
[1720759666713,0.367492,57144.0,57143.0,0.005]
[1720759666933,0.612487,57144.0,57143.0,0.014]
[1720759667146,0.64549174,57144.0,57143.0,0.014]
[1720759667359,0.64549174,57144.0,57143.0,0.009]
[1720759667602,0.89648674,57144.0,57143.0,0.009]
[1720759667810,0.12221571,57136.0,57134.0,0.0612]
[1720759668022,0.245027,57137.0,57134.0,0.0612]
[1720759668023,0.367549,57135.0,57134.0,0.0612]
[1720759668472,0.006,57139.0,57129.0,0.062113]
[1720759668473,0.122527,57130.0,57129.0,0.062113]
[1720759668920,0.367582,57130.0,57129.0,0.000913]
[1720759669150,0.612637,57130.0,57129.0,0.000913]
[1720759670267,0.64566738,57130.0,57129.0,0.000913]
[1720759670479,0.64566738,57130.0,57129.0,0.008913]
[1720759670692,0.99672238,57130.0,57129.0,0.016913]
[1720759671119,0.99072238,57130.0,57129.0,0.016913]
[1720759671567,1.12176804,57130.0,57129.0,0.016913]
[1720759671836,0.99072238,57130.0,57129.0,0.016913]
[1720759672266,1.12175045,57130.0,57129.0,0.016913]
[1720759672483,0.1,57130.0,57129.0,0.161313]
[1720759672701,0.25653429,57130.0,57129.0,0.161313]
[1720759672926,0.25653429,57130.0,57129.0,0.008913]
[1720759672927,0.64664621,57130.0,57129.0,0.008913]
[1720759673217,0.85146768,57130.0,57129.0,0.001913]
[1720759673432,0.85146768,57130.0,57129.0,0.002913]
[1720759673433,1.12872928,57130.0,57129.0,0.002913]
[1720759673654,0.997712,57130.0,57129.0,0.000913]
[1720759673888,1.10251619,57130.0,57129.0,0.005913]
[1720759674161,0.997712,57130.0,57129.0,0.010913]
[1720759674387,1.23994847,57130.0,57129.0,0.000913]
[1720759674621,1.48500347,57130.0,57129.0,0.000913]
[1720759674840,0.997712,57130.0,57129.0,0.002913]
[1720759675269,1.12839671,57130.0,57129.0,0.002913]
[1720759675731,0.86888257,57130.0,57129.0,0.002913]
[1720759675956,0.99140957,57130.0,57129.0,0.002913]
[1720759676409,1.10215203,57130.0,57129.0,0.002913]
[1720759676637,1.09615203,57130.0,57129.0,0.002913]
[1720759676852,0.50129957,57130.0,57129.0,0.002913]
[1720759677558,0.1,57130.0,57129.0,0.002913]
[1720759677773,0.1,57131.0,57129.0,0.171913]
[1720759678005,0.1,57132.0,57129.0,0.171913]
[1720759678237,0.222519,57134.0,57131.0,0.109]
[1720759678455,0.1,57134.0,57131.0,0.109]
[1720759678678,0.1,57134.0,57133.0,0.109]
[1720759678679,0.222519,57134.0,57133.0,0.109]
[1720759678887,0.222519,57134.0,57131.0,0.109]
[1720759679092,0.222519,57134.0,57129.0,0.171913]
[1720759679313,0.122522,57133.0,57129.0,0.171913]
[1720759679533,0.222523,57132.0,57129.0,0.061913]
[1720759679973,0.1,57132.0,57129.0,0.170913]
[1720759680188,0.1,57132.0,57130.0,0.109]
[1720759680398,0.1,57132.0,57129.0,0.170913]
[1720759680614,0.1,57133.0,57129.0,0.169913]
[1720759680833,0.002,57132.0,57129.0,0.169913]
[1720759681089,0.1,57133.0,57129.0,0.169913]
[1720759681307,0.1047001,57140.0,57136.0,0.109]
[1720759681520,0.13087513,57142.0,57134.0,0.076]
[1720759681521,0.1047001,57141.0,57134.0,0.076]
[1720759681739,0.245018,57139.0,57134.0,0.076]
[1720759681962,0.245018,57139.0,57129.0,0.137913]
[1720759681963,0.006,57137.0,57129.0,0.137913]
[1720759682151,0.006,57137.0,57130.0,0.00306353]
[1720759682152,0.122521,57133.0,57130.0,0.00306353]
[1720759682418,0.122524,57132.0,57130.0,0.00306353]
[1720759682636,0.245038,57134.0,57129.0,0.137913]
[1720759682637,0.122525,57131.0,57129.0,0.137913]
[1720759683033,0.367582,57130.0,57129.0,0.137913]
[1720759683261,0.367582,57130.0,57129.0,0.000913]
[1720759683703,0.367582,57130.0,57129.0,0.004913]
[1720759684345,0.367582,57130.0,57129.0,0.000913]
[1720759684346,0.718637,57130.0,57129.0,0.000913]
[1720759684568,0.718637,57130.0,57129.0,0.012913]
[1720759684797,0.99719742,57130.0,57129.0,0.012913]
[1720759685012,0.99719742,57130.0,57129.0,0.006913]
[1720759685459,0.75214242,57130.0,57129.0,0.003913]
[1720759685694,0.718637,57130.0,57129.0,0.003913]
[1720759685906,0.718637,57130.0,57129.0,0.004913]
[1720759686162,0.74574547,57130.0,57129.0,0.004913]
[1720759686382,0.712637,57130.0,57129.0,0.004913]
[1720759687567,0.712637,57130.0,57129.0,0.001913]
[1720759687797,0.712637,57130.0,57129.0,0.002913]
[1720759690351,0.74585754,57130.0,57129.0,0.002913]
[1720759690834,0.10465868,57136.0,57135.0,0.054]
[1720759691070,0.17744153,57148.0,57143.0,0.122499]
[1720759691071,0.10465868,57144.0,57143.0,0.122499]
[1720759691282,0.00905066,57148.0,57143.0,0.377799]
[1720759691499,0.00905066,57148.0,57143.0,0.268799]
[1720759691747,0.122497,57144.0,57143.0,0.1463]
[1720759691976,0.00905066,57148.0,57147.0,0.476473]
[1720759691977,0.00083,57148.0,57147.0,0.476473]
[1720759692409,0.00083,57148.0,57147.0,0.537573]
[1720759692628,0.00083,57148.0,57147.0,0.0631]
[1720759694140,0.00083,57148.0,57143.0,0.1548]
[1720759694366,0.122493,57146.0,57143.0,0.2578]
[1720759694600,0.122493,57146.0,57143.0,0.2538]
[1720759694818,0.00083,57148.0,57145.0,0.109]
[1720759695087,0.123318,57148.0,57147.0,0.008]
[1720759695299,0.123318,57148.0,57147.0,0.119]
[1720759695300,0.00083,57148.0,57147.0,0.119]
[1720759695503,0.123319,57148.0,57143.0,0.1448]
[1720759695709,0.12272301,57148.0,57144.0,0.00306353]
[1720759696777,0.244984,57147.0,57144.0,0.00306353]
[1720759697014,0.00023401,57148.0,57143.0,0.01]
[1720759697015,0.373492,57144.0,57143.0,0.01]
[1720759697236,0.373492,57144.0,57137.0,0.1456]
[1720759697237,0.36753,57138.0,57137.0,0.1456]
[1720759697459,0.12251,57138.0,57137.0,0.1456]
[1720759698583,0.245017,57139.0,57137.0,0.1456]
[1720759698584,0.122508,57139.0,57137.0,0.1456]
[1720759698795,0.122508,57139.0,57137.0,0.2546]
[1720759699042,0.122508,57139.0,57137.0,0.2806]
[1720759699466,0.122506,57140.0,57137.0,0.2806]
[1720759700068,0.122501,57143.0,57138.0,0.12251]
[1720759700286,0.122501,57143.0,57139.0,0.00306353]
[1720759700478,0.122497,57144.0,57139.0,0.23457053]
[1720759700875,0.122497,57144.0,57140.0,0.109]
[1720759702461,0.25313512,57146.0,57140.0,0.005]
[1720759702462,0.1225,57143.0,57140.0,0.005]
[1720759702964,0.244997,57144.0,57140.0,0.005]
[1720759703180,0.122503,57142.0,57140.0,0.005]
[1720759703660,0.122503,57142.0,57140.0,0.01]
[1720759703858,0.1225,57143.0,57140.0,0.06]
[1720759704281,0.1225,57143.0,57140.0,0.119]